bitfinex-derivatives/quotes_SOLF0:USTF0_20260306
["timestamp","ask_amount","ask_price","bid_price","bid_amount"]
[1772831214948,2.940908,85.001,84.97,7.87605186]
[1772831215151,2.940908,85.0,84.97,7.87605186]
[1772831215449,10.587,85.012,84.97,7.87605186]
[1772831215642,10.587,85.01,84.97,7.87605186]
[1772831215846,12.1451311,85.009,84.97,7.87605186]
[1772831216042,12.1451311,85.008,84.97,7.87605186]
[1772831216242,12.1451311,85.007,84.97,7.87605186]
[1772831216442,12.1451311,85.006,84.97,7.87605186]
[1772831216643,12.1451311,85.005,84.97,7.87605186]
[1772831216847,12.1451311,85.004,84.97,7.87605186]
[1772831217051,12.1451311,85.003,84.97,7.87605186]
[1772831217252,12.1451311,85.002,84.97,7.87605186]
[1772831217453,12.1451311,85.001,84.97,7.87605186]
[1772831217654,12.1451311,85.0,84.97,7.87605186]
[1772831217853,12.1451311,84.999,84.97,7.87605186]
[1772831218050,12.1451311,84.998,84.97,7.87605186]
[1772831218251,2.94097713,84.997,84.97,7.87605186]
[1772831218548,2.94097713,84.996,84.97,7.87605186]
[1772831218747,10.587,85.01,84.97,7.87605186]
[1772831218945,12.14578262,85.009,84.97,7.87605186]
[1772831219153,12.14578262,85.008,84.97,7.87605186]
[1772831219453,12.14578262,85.007,84.97,7.87605186]
[1772831219652,12.14578262,85.006,84.97,7.87605186]
[1772831219852,12.14578262,85.005,84.97,7.87605186]
[1772831220054,12.14578262,85.004,84.97,7.87605186]
[1772831220254,12.14578262,85.003,84.97,7.87605186]
[1772831220555,12.14578262,85.002,84.97,7.87605186]
[1772831220744,12.14578262,85.001,84.97,7.87605186]
[1772831220945,12.14578262,85.0,84.96,7.89178158]
[1772831221251,12.14578262,84.999,84.96,7.89178158]
[1772831221556,12.14578262,84.998,84.961,4.26778736]
[1772831221751,12.14578262,84.997,84.961,4.26778736]
[1772831222059,12.14578262,84.996,84.952,4.26777452]
[1772831222255,12.14578262,84.995,84.952,4.26777452]
[1772831222452,12.14578262,84.994,84.952,4.26777452]
[1772831222753,12.14578262,84.993,84.952,4.26777452]
[1772831222951,12.14578262,84.992,84.952,4.26777452]
[1772831223155,12.14578262,84.991,84.952,4.26777452]
[1772831223456,12.14578262,84.99,84.952,4.26777452]
[1772831223647,12.14578262,84.989,84.952,4.26777452]
[1772831223853,12.14578262,84.988,84.952,4.26777452]
[1772831224056,12.14578262,84.987,84.952,4.26777452]
[1772831224258,9.20464227,84.986,84.952,4.26777452]
[1772831224852,12.14578262,84.985,84.952,4.26777452]
[1772831225053,2.94114035,84.984,84.952,4.26777452]
[1772831225357,2.94114035,84.983,84.952,4.26777452]
[1772831225548,10.589,84.996,84.952,4.26777452]
[1772831225749,12.14384493,84.995,84.952,4.26777452]
[1772831225948,12.14384493,84.994,84.952,4.26777452]
[1772831226149,12.14384493,84.993,84.952,4.26777452]
[1772831226359,12.14384493,84.992,84.952,4.26777452]
[1772831226558,12.14384493,84.991,84.952,4.26777452]
[1772831226760,10.59,84.988,84.952,4.26777452]
[1772831227064,12.14384493,84.987,84.951,457.91176671]
[1772831227263,12.14384493,84.986,84.951,457.91176671]
[1772831227450,12.14384493,84.985,84.951,457.91176671]
[1772831227652,12.14384493,84.984,84.951,457.91176671]
[1772831227856,12.14384493,84.983,84.951,457.91176671]
[1772831228056,12.14384493,84.982,84.951,457.91176671]
[1772831228355,12.14384493,84.981,84.951,457.91176671]
[1772831228550,12.14384493,84.98,84.951,457.91176671]
[1772831228858,12.14384493,84.979,84.951,457.91176671]
[1772831229058,2.94159513,84.978,84.951,457.91176671]
[1772831229357,2.94159513,84.977,84.951,457.91176671]
[1772831229554,10.59,84.988,84.951,457.91176671]
[1772831229859,10.59,84.988,84.952,4.26383875]
[1772831229860,12.14150381,84.987,84.952,4.26383875]
[1772831230057,12.14150381,84.986,84.952,4.26383875]
[1772831230262,12.14080605,84.985,84.952,4.26383875]
[1772831230559,12.14080605,84.984,84.952,4.26383875]
[1772831230759,12.14080605,84.983,84.952,4.26383875]
[1772831230959,2.94190252,84.982,84.952,4.26383875]
[1772831231161,2.94190252,84.981,84.952,4.26383875]
[1772831231357,10.59,84.988,84.952,4.26383875]
[1772831231562,12.13971497,84.987,84.952,4.26383875]
[1772831231859,12.13971497,84.986,84.952,4.26383875]
[1772831232060,12.13971497,84.985,84.952,4.26383875]
[1772831232263,12.13971497,84.984,84.952,4.26383875]
[1772831232562,12.13971497,84.983,84.952,4.26383875]
[1772831232763,2.94163574,84.982,84.952,4.26383875]
[1772831232961,2.94163574,84.981,84.952,4.26383875]
[1772831233161,10.589,84.995,84.952,4.26383875]
[1772831233364,10.59,84.99,84.952,4.26383875]
[1772831233664,12.13921868,84.989,84.952,4.26383875]
[1772831233865,12.13921868,84.988,84.952,4.26383875]
[1772831234063,12.13921868,84.987,84.952,4.26383875]
[1772831234264,12.13921868,84.986,84.952,4.26383875]
[1772831234568,12.13921868,84.985,84.952,4.26383875]
[1772831234765,12.13921868,84.984,84.952,4.26383875]
[1772831234966,2.9416357,84.983,84.952,4.26383875]
[1772831235167,2.9416357,84.982,84.952,4.26383875]
[1772831235371,10.59,84.99,84.952,4.26383875]
[1772831235666,12.13816253,84.989,84.952,4.26383875]
[1772831235864,12.13816253,84.988,84.952,4.26383875]
[1772831236064,12.13816253,84.987,84.952,4.26383875]
[1772831236266,12.13816253,84.986,84.952,4.26383875]
[1772831236566,12.13816253,84.985,84.952,4.26383875]
[1772831236864,12.13816253,84.984,84.952,4.26383875]
[1772831237066,2.94163563,84.983,84.952,4.26383875]
[1772831237264,10.59,84.99,84.952,4.26383875]
[1772831237463,10.59,84.988,84.952,4.26383875]
[1772831237667,12.13718645,84.987,84.952,4.26383875]
[1772831237867,12.13718645,84.986,84.952,4.26383875]
[1772831238067,12.13718645,84.985,84.952,4.26383875]
[1772831238267,12.13718645,84.984,84.952,4.26383875]
[1772831238464,2.94163587,84.983,84.952,4.26383875]
[1772831238664,10.59,84.988,84.952,4.26383875]
[1772831238867,12.13668833,84.987,84.952,4.26383875]
[1772831239069,12.13668833,84.986,84.952,4.26383875]
[1772831239271,12.13668833,84.985,84.952,4.26383875]
[1772831239567,2.94163601,84.984,84.952,4.26383875]
[1772831239759,2.94163601,84.983,84.952,4.26383875]
[1772831239957,10.59,84.988,84.952,4.26383875]
[1772831240157,12.13620811,84.987,84.952,4.26383875]
[1772831240360,12.13620811,84.986,84.952,4.26383875]
[1772831240557,12.13620811,84.985,84.952,4.26383875]
[1772831240758,12.13620811,84.984,84.952,4.26383875]
[1772831241067,2.94163626,84.983,84.952,4.26383875]
[1772831241265,10.98359612,85.003,84.96,3.62399422]
[1772831241463,10.59,84.99,84.952,4.26383875]
[1772831241663,12.20771236,84.989,84.952,4.26383875]
[1772831241863,12.20771236,84.988,84.952,4.26383875]
[1772831242165,12.20771236,84.987,84.952,4.26383875]
[1772831242366,12.20771236,84.986,84.952,4.26383875]
[1772831242566,12.20771236,84.985,84.952,4.26383875]
[1772831242766,12.20771236,84.984,84.952,4.26383875]
[1772831242969,10.59,84.988,84.952,4.26383875]
[1772831243167,10.59,84.988,84.951,457.91176671]
[1772831243168,12.20771657,84.987,84.951,457.91176671]
[1772831243368,10.591,84.98,84.951,457.91176671]
[1772831244271,10.59,84.987,84.951,457.91176671]
[1772831244471,12.2080839,84.986,84.951,462.19655444]
[1772831244671,12.2080839,84.985,84.951,462.19655444]
[1772831244965,10.59,84.987,84.951,462.19655444]
[1772831244966,12.2080839,84.984,84.951,462.19655444]
[1772831245168,12.2080839,84.983,84.951,462.19655444]
[1772831245469,12.2080839,84.982,84.951,462.19655444]
[1772831245669,12.2080839,84.981,84.951,462.19655444]
[1772831245863,12.2080839,84.98,84.951,462.19655444]
[1772831246066,12.20855044,84.979,84.951,462.19655444]
[1772831246367,12.20855044,84.978,84.951,462.19655444]
[1772831246571,10.59,84.987,84.952,4.27601888]
[1772831246771,12.20731987,84.986,84.952,4.27601888]
[1772831247070,12.20731987,84.985,84.952,4.27601888]
[1772831247266,12.20731987,84.984,84.952,4.27601888]
[1772831247473,12.20735457,84.983,84.952,4.27601888]
[1772831247673,10.59,84.987,84.952,4.27601888]
[1772831247873,12.20774718,84.986,84.952,4.27601888]
[1772831248072,12.20774718,84.985,84.952,4.27601888]
[1772831248265,12.20774718,84.984,84.952,4.27601888]
[1772831248465,2.94167022,84.983,84.952,4.27601888]
[1772831248669,10.59,84.987,84.952,4.27601888]
[1772831248865,12.20816232,84.986,84.952,4.27601888]
[1772831249072,10.59,84.983,84.952,4.27601888]
[1772831249366,10.98359612,85.003,84.952,4.27601888]
[1772831249571,12.20880469,85.002,84.952,4.27601888]
[1772831249771,12.20880469,85.001,84.952,4.27601888]
[1772831249972,12.20880469,85.0,84.952,4.27601888]
[1772831250270,10.98359612,85.003,84.952,4.27601888]
[1772831250271,12.20880469,84.999,84.952,4.27601888]
[1772831250473,12.20880469,84.998,84.952,4.27601888]
[1772831250667,10.591,84.982,84.952,4.27601888]
[1772831250868,10.591,84.982,84.9,21.202]
[1772831250869,12.21145681,84.981,84.94,3.62501603]
[1772831251073,15.83647284,84.98,84.933,4.25974229]
[1772831251278,12.21145681,84.979,84.933,4.25974229]
[1772831251477,10.591,84.977,84.933,4.25974229]
[1772831251772,12.21145681,84.976,84.933,4.25974229]
[1772831251974,10.591,84.977,84.933,4.25974229]
[1772831251975,12.21145681,84.975,84.933,4.25974229]
[1772831252274,12.21145681,84.974,84.933,4.25974229]
[1772831252473,12.21145681,84.973,84.933,4.25974229]
[1772831252671,12.21145681,84.972,84.933,4.25974229]
[1772831252868,12.21145681,84.971,84.94,3.62501603]
[1772831253173,12.21145681,84.97,84.94,3.62501603]
[1772831253476,12.21145681,84.969,84.94,3.62501603]
[1772831253678,12.21145681,84.968,84.94,3.62501603]
[1772831253883,12.21145681,84.967,84.94,3.62501603]
[1772831254177,12.21155453,84.966,84.94,3.62501603]
[1772831254379,10.591,84.977,84.94,3.62501603]
[1772831254680,10.591,84.975,84.94,3.62501603]
[1772831254983,23.19431497,84.974,84.931,4.2205773]
[1772831255175,12.21071885,84.973,84.931,4.2205773]
[1772831255376,10.593,84.96,84.931,4.2205773]
[1772831255576,14.60861215,84.98,84.931,4.2205773]
[1772831255880,12.21033255,84.979,84.931,4.2205773]
[1772831256078,10.591,84.977,84.931,4.2205773]
[1772831256281,12.21033255,84.976,84.94,3.62501603]
[1772831256578,12.21033255,84.975,84.94,3.62501603]
[1772831256770,12.21033255,84.974,84.94,3.62501603]
[1772831256975,10.98359612,84.982,84.94,3.62501603]
[1772831256976,12.21033255,84.973,84.94,3.62501603]
[1772831257185,10.592,84.968,84.94,3.62501603]
[1772831257384,12.21033255,84.967,84.94,3.62501603]
[1772831257580,12.21033255,84.966,84.94,3.62501603]
[1772831257785,12.21033255,84.965,84.94,3.62501603]
[1772831257987,12.21033255,84.964,84.94,3.62501603]
[1772831258188,12.21033255,84.963,84.931,4.2205773]
[1772831258489,12.21033255,84.962,84.931,4.2205773]
[1772831258790,2.94259749,84.961,84.931,4.2205773]
[1772831259091,10.592,84.968,84.931,4.2205773]
[1772831259282,12.21110254,84.967,84.931,4.2205773]
[1772831259589,12.21110254,84.966,84.931,4.2205773]
[1772831259790,12.21110254,84.965,84.931,4.2205773]
[1772831259989,12.21110254,84.964,84.931,4.2205773]
[1772831260185,12.21110254,84.963,84.931,4.2205773]
[1772831260385,12.21110254,84.962,84.931,4.2205773]
[1772831260586,9.26854107,84.961,84.931,4.2205773]
[1772831260782,10.592,84.968,84.931,4.2205773]
[1772831260985,12.21059192,84.967,84.931,4.2205773]
[1772831261190,12.21059192,84.966,84.931,4.2205773]
[1772831261388,12.21059192,84.965,84.931,4.2205773]
[1772831261690,12.21059192,84.964,84.931,4.2205773]
[1772831261887,12.21059192,84.963,84.931,4.2205773]
[1772831262088,12.21059192,84.962,84.931,4.2205773]
[1772831262293,2.94256171,84.961,84.931,4.2205773]
[1772831262591,10.592,84.968,84.931,4.2205773]
[1772831262787,12.21163471,84.967,84.94,3.62501603]
[1772831263090,12.21163471,84.966,84.94,3.62501603]
[1772831263292,12.21163471,84.965,84.94,3.62501603]
[1772831263490,12.21163471,84.964,84.94,3.62501603]
[1772831263792,14.66238825,84.992,84.869,2.04857718]
[1772831263793,12.21163471,84.963,84.92,4.22404379]
[1772831263992,3.62501603,84.96,84.91,7.84905982]
[1772831264194,12.21163471,84.959,84.91,7.84905982]
[1772831264392,12.21163471,84.958,84.91,7.84905982]
[1772831264686,12.21163471,84.957,84.91,7.84905982]
[1772831264891,12.21163471,84.956,84.911,4.22404379]
[1772831265091,12.21163471,84.955,84.911,4.22404379]
[1772831265390,12.21163471,84.954,84.911,4.22404379]
[1772831265587,12.21163471,84.953,84.911,4.22404379]
[1772831265788,12.21163471,84.952,84.911,4.22404379]
[1772831265990,12.21163471,84.951,84.911,4.22404379]
[1772831266188,12.21163471,84.95,84.911,4.22404379]
[1772831266390,2.94256183,84.949,84.911,4.22404379]
[1772831266587,11.60554561,84.968,84.911,4.22404379]
[1772831266785,10.593,84.966,84.911,4.22404379]
[1772831266993,12.20776606,84.965,84.911,4.22404379]
[1772831267187,12.20776606,84.964,84.911,4.22404379]
[1772831267386,12.20776606,84.963,84.911,4.22404379]
[1772831267587,12.20776606,84.962,84.911,4.22404379]
[1772831267786,10.593,84.959,84.911,4.22404379]
[1772831267997,12.20776606,84.958,84.911,4.22404379]
[1772831268291,12.20776606,84.957,84.911,4.22404379]
[1772831268495,12.20776606,84.956,84.911,4.22404379]
[1772831268696,12.20776606,84.955,84.911,4.22404379]
[1772831268897,12.20776606,84.954,84.911,4.22404379]
[1772831269097,12.20776606,84.953,84.911,4.22404379]
[1772831269292,310.97494784,84.973,84.931,4.20188865]
[1772831269498,12.20283051,84.972,84.95,3.62501603]
[1772831269699,310.97494784,84.973,84.95,3.62501603]
[1772831272203,310.97494784,84.973,84.941,4.20188865]
[1772831273499,12.15588756,84.972,84.941,4.20188865]
[1772831273697,12.15588756,84.971,84.941,4.20188865]
[1772831273899,12.15588756,84.97,84.931,4.25302417]
[1772831274100,310.97494784,84.973,84.931,4.25302417]
[1772831274409,12.15589169,84.972,84.931,4.25302417]
[1772831274606,12.15589169,84.971,84.931,4.25302417]
[1772831274902,2.94235726,84.97,84.931,4.25302417]
[1772831275104,310.97494784,84.973,84.931,4.25302417]
[1772831275305,12.15607381,84.972,84.931,4.25302417]
[1772831275503,12.15607381,84.971,84.931,4.25302417]
[1772831275703,2.94235726,84.97,84.931,4.25302417]
[1772831276001,10.589,84.996,84.951,4.16037912]
[1772831276200,12.15476391,84.995,84.96,3.62501603]
[1772831276506,12.15476391,84.994,84.96,3.62501603]
[1772831276707,12.15476391,84.993,84.96,3.62501603]
[1772831277005,10.98359612,84.983,84.94,7.7989865]
[1772831277200,3.62501603,84.98,84.94,7.7989865]
[1772831277399,12.15476391,84.979,84.94,7.7989865]
[1772831277599,12.15476391,84.978,84.94,7.7989865]
[1772831277803,12.15476391,84.977,84.94,7.7989865]
[1772831278106,12.15476391,84.976,84.94,7.7989865]
[1772831278309,12.15476391,84.975,84.94,7.7989865]
[1772831278502,12.15476391,84.974,84.94,7.7989865]
[1772831278703,12.15476391,84.973,84.94,7.7989865]
[1772831278904,12.15476391,84.972,84.94,7.7989865]
[1772831279200,2.94190988,84.971,84.94,4.17397047]
[1772831279402,10.59,84.988,84.94,4.17397047]
[1772831279598,12.15775901,84.987,84.94,4.17397047]
[1772831279805,12.15775901,84.986,84.94,4.17397047]
[1772831280006,12.15775901,84.985,84.94,4.17397047]
[1772831280205,12.15775901,84.984,84.94,4.17397047]
[1772831280399,12.15775901,84.983,84.94,4.17397047]
[1772831280713,3.62501603,84.98,84.929,4.16845647]
[1772831281010,12.15775901,84.979,84.929,4.16845647]
[1772831281309,12.15775901,84.978,84.929,4.16845647]
[1772831281504,12.15775901,84.977,84.929,4.16845647]
[1772831281706,12.15775901,84.976,84.929,4.16845647]
[1772831281906,12.15775901,84.975,84.929,4.16845647]
[1772831282108,12.15775901,84.974,84.929,4.16845647]
[1772831282412,12.15775901,84.973,84.93,3.62501603]
[1772831282602,12.15775901,84.972,84.931,4.17125849]
[1772831282908,12.15775901,84.971,84.931,4.17125849]
[1772831283110,12.15775901,84.97,84.941,4.15515834]
[1772831283308,2.94228663,84.969,84.941,4.15515834]
[1772831283508,10.98359612,84.99,84.941,4.15515834]
[1772831283711,12.16005613,84.989,84.951,4.15515834]
[1772831284008,12.16005613,84.988,84.951,4.15515834]
[1772831284310,12.16005613,84.987,84.951,4.15515834]
[1772831284513,12.16005613,84.986,84.951,4.15515834]
[1772831284712,12.16005613,84.985,84.951,4.15515834]
[1772831284912,12.16005613,84.984,84.951,4.15515834]
[1772831285114,12.16005613,84.983,84.951,4.15515834]
[1772831285313,10.98359612,85.002,84.971,4.15304211]
[1772831285614,3.87511967,85.005,84.938,3.82394184]
[1772831285816,3.87511967,84.989,84.94,3.62501603]
[1772831286112,3.87511967,84.989,84.941,3.82394184]
[1772831288411,3.87511967,84.979,84.929,3.80989001]
[1772831288811,3.87511967,84.969,84.929,3.80989001]
[1772831292218,10.592,84.968,84.929,3.80989001]
[1772831294218,3.87511967,84.969,84.929,3.80989001]
[1772831294816,3.87511967,84.949,84.902,3.63600799]
[1772831295015,3.87511967,84.939,84.902,3.63600799]
[1772831297424,3.87511967,84.937,84.902,3.63600799]
[1772831297623,12.12515469,84.936,84.902,3.63600799]
[1772831297919,12.12515469,84.935,84.902,3.63600799]
[1772831298224,2.94356206,84.934,84.902,3.63600799]
[1772831298421,3.87511967,84.937,84.902,3.63600799]
[1772831298622,12.12229154,84.936,84.902,3.63600799]
[1772831298824,3.87511967,84.934,84.89,3.57693413]
[1772831299020,3.87511967,84.932,84.89,3.57693413]
[1772831299620,3.87511967,84.93,84.89,3.57693413]
[1772831300523,3.87511967,84.93,84.88,3.62501603]
[1772831300524,3.87511967,84.919,84.862,3.58604761]
[1772831300820,3.87511967,84.917,84.862,3.58604761]
[1772831301224,3.87511967,84.915,84.864,3.58682179]
[1772831301424,3.87511967,84.915,84.871,3.58682179]
[1772831302625,3.87511967,84.915,84.86,7.21183782]
[1772831303022,3.87511967,84.915,84.861,3.52324771]
[1772831304221,3.87511967,84.915,84.871,3.52324771]
[1772831304425,3.87511967,84.915,84.88,3.62501603]
[1772831305915,3.87511967,84.915,84.872,10.604]
[1772831306527,3.87511967,84.915,84.871,3.52324771]
[1772831313225,3.87511967,84.915,84.88,3.63161054]
[1772831320429,14.26566446,84.911,84.88,3.63161054]
[1772831321627,3.66666446,84.908,84.871,3.52324771]
[1772831326137,3.66666446,84.907,84.87,3.63161054]
[1772831327238,3.66666446,84.907,84.861,3.5241945]
[1772831327839,3.66666446,84.902,84.861,3.5241945]
[1772831328542,3.66666446,84.902,84.87,3.63161054]
[1772831328741,2.94412948,84.93,84.853,463.83984426]
[1772831328742,3.66666446,84.893,84.854,3.52943869]
[1772831329242,3.66666446,84.893,84.85,3.63161054]
[1772831329439,3.66666446,84.886,84.844,3.5292325]
[1772831329836,3.66666446,84.886,84.85,3.63161054]
[1772831330440,3.66666446,84.903,84.853,3.5292325]
[1772831330738,3.66666446,84.903,84.87,7.16084304]
[1772831330941,3.66666446,84.903,84.87,3.63161054]
[1772831331346,3.66666446,84.899,84.86,3.63161054]
[1772831331546,3.66666446,84.897,84.85,3.63161054]
[1772831331842,3.66666446,84.895,84.85,3.63161054]
[1772831332147,3.66666446,84.895,84.87,3.63161054]
[1772831339044,9.21079992,84.894,84.87,3.63161054]
[1772831339340,12.1556222,84.893,84.87,3.63161054]
[1772831339542,2.94482228,84.892,84.87,3.63161054]
[1772831339745,3.66666446,84.895,84.87,3.63161054]
[1772831339945,3.78815643,84.893,84.87,3.63161054]
[1772831340250,12.15789119,84.892,84.87,3.63161054]
[1772831340447,2.94482228,84.891,84.87,3.63161054]
[1772831340752,3.78815643,84.893,84.87,3.63161054]
[1772831340946,12.15789119,84.892,84.87,3.63161054]
[1772831341143,12.16033177,84.891,84.87,3.63161054]
[1772831341347,2.94482228,84.89,84.86,3.63161054]
[1772831341548,3.78815643,84.893,84.86,3.63161054]
[1772831341845,12.15835914,84.892,84.86,3.63161054]
[1772831342040,12.15835914,84.891,84.86,3.63161054]
[1772831342241,12.15835914,84.89,84.86,3.63161054]
[1772831342441,3.78815643,84.893,84.86,3.63161054]
[1772831342647,12.16059849,84.892,84.86,3.63161054]
[1772831342848,12.16059849,84.891,84.86,3.63161054]
[1772831343046,12.16059849,84.89,84.86,3.63161054]
[1772831343246,12.16059849,84.889,84.86,3.63161054]
[1772831343451,3.78815643,84.893,84.86,3.63161054]
[1772831343649,12.16326538,84.892,84.86,3.63161054]
[1772831343851,12.16326538,84.891,84.86,3.63161054]
[1772831344156,12.16326538,84.89,84.86,3.63161054]
[1772831344347,12.16326538,84.889,84.86,3.63161054]
[1772831344553,12.16326538,84.888,84.86,3.63161054]
[1772831344754,10.602,84.892,84.86,3.63161054]
[1772831345057,12.16561113,84.891,84.86,3.63161054]
[1772831345354,12.16561113,84.89,84.86,3.63161054]
[1772831345554,12.16561113,84.889,84.86,3.63161054]
[1772831345750,12.16561113,84.888,84.86,3.63161054]
[1772831346054,2.9448236,84.887,84.86,3.63161054]
[1772831346256,14.28976794,84.892,84.86,3.63161054]
[1772831346456,12.16797342,84.891,84.86,3.63161054]
[1772831346749,10.602,84.889,84.86,3.63161054]
[1772831346958,3.68776794,84.887,84.86,3.63161054]
[1772831349953,3.68776794,84.897,84.87,3.63161054]
[1772831350353,12.16946534,84.896,84.87,3.63161054]
[1772831350555,12.16946534,84.895,84.87,3.63161054]
[1772831350753,12.16946534,84.894,84.87,3.63161054]
[1772831350959,3.68776794,84.908,84.871,3.65590551]
[1772831351153,12.16900397,84.907,84.88,3.63161054]
[1772831351353,3.68776794,84.908,84.88,3.63161054]
[1772831351354,12.16900397,84.906,84.88,3.63161054]
[1772831351554,12.16900397,84.905,84.88,3.63161054]
[1772831351756,12.16900397,84.904,84.88,3.63161054]
[1772831352061,3.68776794,84.908,84.88,3.63161054]
[1772831352258,12.1685733,84.907,84.88,3.63161054]
[1772831352560,3.68776794,84.905,84.88,3.63161054]
[1772831352754,15.85634124,84.904,84.88,3.63161054]
[1772831352959,12.1685733,84.903,84.88,3.63161054]
[1772831353255,2.94436798,84.902,84.88,3.63161054]
[1772831353461,3.68776794,84.904,84.88,3.63161054]
[1772831353660,12.16595011,84.903,84.88,3.63161054]
[1772831353860,2.9444375,84.902,84.88,3.63161054]
[1772831354061,3.68776794,84.904,84.88,3.63161054]
[1772831354362,12.16412267,84.903,84.88,3.63161054]
[1772831354556,2.9444375,84.902,84.88,3.63161054]
[1772831354753,3.68776794,84.904,84.88,3.63161054]
[1772831354956,12.16412753,84.903,84.88,3.63161054]
[1772831355162,3.68776794,84.904,84.88,3.63161054]
[1772831355562,12.1620637,84.903,84.88,3.63161054]
[1772831355758,3.68776794,84.904,84.88,3.63161054]
[1772831355954,12.16240519,84.903,84.88,3.63161054]
[1772831356156,3.68776794,84.904,84.88,3.63161054]
[1772831356364,2.94440274,84.903,84.88,3.63161054]
[1772831356560,3.68776794,84.904,84.88,3.63161054]
[1772831356760,2.94440274,84.903,84.88,3.63161054]
[1772831357060,3.68776794,84.904,84.88,3.63161054]
[1772831359165,3.68776794,84.904,84.871,3.65590551]
[1772831364668,2.94443844,84.903,84.871,3.65590551]
[1772831364867,3.68776794,84.904,84.871,3.65590551]
[1772831365070,6.63220663,84.903,84.871,3.65590551]
[1772831365369,3.68776794,84.903,84.871,3.65590551]
[1772831365766,10.601,84.902,84.871,3.65590551]
[1772831365970,14.28876794,84.902,84.871,3.65590551]
[1772831369968,10.601,84.894,84.871,3.65590551]
[1772831370168,10.601,84.894,84.87,3.63161054]
[1772831370573,3.68776794,84.901,84.87,3.63161054]
[1772831370773,12.13286623,84.9,84.87,3.63161054]
[1772831370973,2.94447744,84.899,84.87,3.63161054]
[1772831371165,14.28876794,84.901,84.87,3.63161054]
[1772831371370,12.13515606,84.9,84.87,3.63161054]
[1772831371571,14.28876794,84.901,84.87,3.63161054]
[1772831371771,2.94444269,84.9,84.87,3.63161054]
[1772831371966,14.28876794,84.901,84.87,3.63161054]
[1772831372178,2.94444269,84.9,84.87,3.63161054]
[1772831372477,14.28876794,84.901,84.87,3.63178324]
[1772831372776,2.94444269,84.9,84.87,3.63178324]
[1772831373069,14.28876794,84.901,84.87,3.63178324]
[1772831373272,2.94444254,84.9,84.87,7.53635561]
[1772831373475,14.28876794,84.901,84.87,7.53635561]
[1772831373678,2.94444238,84.9,84.87,7.53635561]
[1772831373877,14.28876794,84.901,84.87,7.53635561]
[1772831374079,2.94444238,84.9,84.87,7.53635561]
[1772831374278,14.28876794,84.901,84.87,7.53635561]
[1772831374580,2.94444238,84.9,84.87,7.53635561]
[1772831374779,3.68776794,84.901,84.87,7.53635561]
[1772831374974,2.94444238,84.9,84.87,7.53635561]
[1772831375174,3.68776794,84.901,84.87,7.53635561]
[1772831375469,12.13237717,84.9,84.87,7.53635561]
[1772831375669,3.68776794,84.901,84.87,7.53635561]
[1772831375875,2.94444238,84.9,84.87,7.53635561]
[1772831376071,3.68776794,84.901,84.87,7.53635561]
[1772831376281,2.94444238,84.9,84.87,7.53635561]
[1772831376582,3.68776794,84.901,84.87,7.53635561]
[1772831376780,2.94444238,84.9,84.87,7.53635561]
[1772831377088,3.68776794,84.901,84.87,7.53635561]
[1772831377280,12.1321762,84.9,84.87,7.53635561]
[1772831377477,2.94444238,84.899,84.87,7.53635561]
[1772831377678,3.68776794,84.901,84.87,7.53635561]
[1772831377878,12.1314285,84.9,84.87,7.53635561]
[1772831378077,2.94444238,84.899,84.87,7.53635561]
[1772831378279,3.68776794,84.901,84.87,7.53635561]
[1772831378478,12.13231306,84.9,84.87,7.53635561]
[1772831378681,2.94444238,84.899,84.87,7.53635561]
[1772831378979,3.68776794,84.901,84.87,7.53635561]
[1772831379175,12.13163266,84.9,84.87,7.53635561]
[1772831379377,2.94444238,84.899,84.87,7.53635561]
[1772831379573,3.68776794,84.901,84.87,7.53635561]
[1772831379775,12.12906731,84.9,84.87,7.53635561]
[1772831379984,2.94444238,84.899,84.87,7.53635561]
[1772831380184,3.68776794,84.901,84.87,7.53635561]
[1772831380385,12.12728418,84.9,84.87,7.53635561]
[1772831380585,2.94444238,84.899,84.871,3.90457237]
[1772831380786,3.68776794,84.901,84.871,3.90457237]
[1772831380983,2.9444073,84.9,84.871,3.90457237]
[1772831381183,2.9444073,84.899,84.871,3.90457237]
[1772831381383,3.68776794,84.901,84.871,3.90457237]
[1772831381583,12.13244595,84.9,84.871,3.90457237]
[1772831381783,2.9444419,84.899,84.871,3.90457237]
[1772831381983,3.68776794,84.901,84.871,3.90457237]
[1772831382288,12.13345171,84.9,84.871,3.90457237]
[1772831382488,3.68776794,84.901,84.871,3.90457237]
[1772831383788,3.68776794,84.901,84.88,3.63178324]
[1772831384189,3.97761075,84.911,84.88,3.63178324]
[1772831384393,16.11259208,84.91,84.88,3.63178324]
[1772831384691,16.11259208,84.909,84.88,3.63178324]
[1772831384887,12.13498133,84.908,84.88,3.63178324]
[1772831385189,12.13498133,84.907,84.88,3.63178324]
[1772831385391,12.13498133,84.906,84.88,3.63178324]
[1772831385689,3.97761075,84.909,84.88,3.63178324]
[1772831385991,12.13524404,84.908,84.88,3.63178324]
[1772831386190,2.9441336,84.907,84.88,3.63178324]
[1772831386390,3.97761075,84.909,84.88,3.63178324]
[1772831386689,12.13579785,84.908,84.88,3.63178324]
[1772831386890,2.94413312,84.907,84.88,3.63178324]